Cogmind - Beta 15 @@@ ROGUE MODE // 2025.10.14 @ 13:33:10 Player: btrs Result: Destroyed by P-70 Sage with Tesla Rifle Performance ------------- Evolutions (5) 2500 Regions Visited (14) 2800 Robots Destroyed (72) 360 Value Destroyed (2228) 2228 Prototype IDs (12) 240 Alien Tech Used (0) 0 Bonus (825) 825 TOTAL SCORE: 8953 Bonus ------- Follower Combat Kills 25 Entered DSFs 500 Met Data Miner 300 Cogmind --------- Core Integrity 0/1000 Matter 13/300 Energy 84/100 System Corruption 0% Temperature Cool (0) Movement Core (50) Location -5/Factory Parts ------- > --- POWER (3) -------- (None) > --- PROPULSION (5) --- (None) > --- UTILITY (7) ------ Advanced Visual Processing Unit Improved Signal Interpreter Long-range Tractor Beam > --- WEAPON (2) ------- Improved Datajack > --- INVENTORY (5) ---- Improved Melee Analysis Suite Mass Driver Peak State ------------ > --- POWER ------------ Light Nuclear Core > --- PROPULSION ------- Armored Huge Wheel Armored Huge Wheel > --- UTILITY ---------- High-capacity Storage Unit Advanced Visual Processing Unit Improved Core Shielding Improved Core Shielding Insulated Plating Heavy Insulated Plating > --- WEAPON ----------- Mini Grenade Launcher Mini Grenade Launcher > --- INVENTORY -------- Armored Huge Wheel Armored Huge Wheel Cesium-ion Thruster Corruption Screen Advanced Beam Rifle Gatling Laser Minigun Gauss Rifle Gauss Rifle Gauss Rifle Mini Grenade Launcher Mini Grenade Launcher Datajack Mining Laser Hammer Hammer Dirty Bomb Trap [Rating: 55] Favorites ----------- Power Light Nuclear Core Engine Light Deuterium Engine Power Core Light Nuclear Core Propulsion Light Treads Treads Light Treads Leg Titanium Leg Wheel Armored Huge Wheel Hover Unit Antigrav System Flight Unit Nuclear Pulse Array Utility Power Shielding Device Improved Heat Sink Storage High-capacity Storage Unit Processor Advanced Visual Processing Unit Protection Power Shielding Weapon Mini Grenade Launcher Energy Gun Particle Gun Energy Cannon Beam Cannon Ballistic Gun Heavy Assault Rifle Ballistic Cannon Light Cannon Launcher Mini Grenade Launcher Impact Weapon Mace Special Melee Weapon Improved Datajack Build | -11 -10 -9 -9 -8 -7 -7 -7 -7 -6 -6 -6 -5 -5 -5 ------- Run | Yrd Mat Mat Min Mat Fac Low Low Dat Pro Fac DSF Fac Was Fac Slots Evolved 10 | . . 2 . 2 2 . . . . 2 . 2 . . Power 2 | . . . . . 1 . . . . . . 1 . . Propulsion 3 | . . 1 . 1 . . . . . 1 . . . . Utility 5 | . . 1 . 1 1 . . . . 1 . 1 . . Weapon . | . . . . . . . . . . . . . . . Parts Attached 84 | 7 6 8 11 25 3 1 . . . 1 5 6 1 10 Power 9 | 2 2 . 1 4 . . . . . . . . . . Engine 7 | 2 1 . 1 3 . . . . . . . . . . Core 2 | . 1 . . 1 . . . . . . . . . . Reactor . | . . . . . . . . . . . . . . . Propulsion 25 | 2 . 3 2 11 . . . . . . . 2 1 4 Treads 9 | 2 . 3 2 2 . . . . . . . . . . Leg 5 | . . . . 5 . . . . . . . . . . Wheel 5 | . . . . 4 . . . . . . . 1 . . Hover 3 | . . . . . . . . . . . . . . 3 Flight 3 | . . . . . . . . . . . . 1 1 1 Utility 24 | 1 3 2 2 4 1 . . . . 1 5 2 . 3 Device 8 | . 1 1 1 1 1 . . . . 1 . . . 2 Storage 3 | 1 2 . . . . . . . . . . . . . Processor 4 | . . . . . . . . . . . 1 2 . 1 Hackware . | . . . . . . . . . . . . . . . Protection 9 | . . 1 1 3 . . . . . . 4 . . . Artifact . | . . . . . . . . . . . . . . . Weapon 26 | 2 1 3 6 6 2 1 . . . . . 2 . 3 Energy Gun 3 | . . 1 1 . 1 . . . . . . . . . Energy Cannon 4 | . . 1 . 2 . . . . . . . . . 1 Ballistic Gun 7 | 2 . . 2 . 1 . . . . . . 2 . . Ballistic Cannon 2 | . 1 . . . . . . . . . . . . 1 Launcher 6 | . . . 3 2 . 1 . . . . . . . . Special Weapon . | . . . . . . . . . . . . . . . Impact Weapon 3 | . . 1 . 2 . . . . . . . . . . Slashing Weapon . | . . . . . . . . . . . . . . . Piercing Weapon . | . . . . . . . . . . . . . . . Special Melee Weapon 1 | . . . . . . . . . . . . . . 1 Unidentified Prototypes 1 | . . . . . 1 . . . . . . . . . Corrupted Parts 5 | . 1 . . 4 . . . . . . . . . . System Corruption 22 | . 5 . . 17 . . . . . . . . . . Parts Lost 51 | . 3 . 10 14 . . . . . . 6 8 . 10 Power 7 | . 1 . 2 2 . . . . . . 1 1 . . Propulsion 19 | . . . 4 6 . . . . . . . 3 . 6 Utility 15 | . 1 . 2 2 . . . . . . 5 2 . 3 Weapon 10 | . 1 . 2 4 . . . . . . . 2 . 1 Highest Loss Streak 8 | . 2 . 8 4 . . . . . . 6 6 . 3 To Critical Strikes 1 | . . . . . . . . . . . . . . 1 Average Backups 13 | 1 11 20 20 13 15 15 16 16 16 17 17 14 3 3 Power 1 | . 1 4 2 1 . . . . . . . . . . Propulsion 2 | . 2 3 2 1 3 3 3 3 3 3 3 2 1 . Utility 2 | . 3 5 5 2 1 1 2 2 2 2 2 . . 1 Weapon 7 | . 3 7 10 9 11 10 10 10 10 11 11 9 2 1 Tool/Special . | . . . . . . . . . . . . . . . Unused Backups 21 | . . 2 . 8 . . 1 . . . . 5 1 4 Power 5 | . . 1 . 4 . . . . . . . . . . Propulsion 2 | . . . . 1 . . . . . . . . . 1 Utility 4 | . . . . 3 . . . . . . . . . 1 Weapon 9 | . . 1 . . . . 1 . . . . 4 1 2 Tool/Special 1 | . . . . . . . . . . . . 1 . . Average Slot Usage (%) 77 | . 96 97 96 79 74 84 84 84 84 76 63 41 29 23 Engine 5 | . 14 . 5 5 7 7 7 7 7 6 2 . . . Core 4 | . . 11 5 2 7 7 7 7 7 6 6 1 . . Treads 11 | . 28 33 33 6 . . . . . . . . . . Leg 1 | . . . . 9 . . . . . . . . . . Wheel 6 | . . . . 9 15 15 15 15 15 13 13 6 . . Device 9 | . 11 10 11 4 8 15 15 15 15 16 7 . . 2 Storage 7 | . 14 11 11 8 7 7 7 7 7 6 6 4 . . Processor 1 | . . . . . . . . . . . 3 10 11 10 Protection 10 | . . 10 8 15 15 15 15 15 15 13 9 8 5 2 Energy Gun 2 | . . 2 10 3 . . . . . . . . . . Energy Cannon 1 | . . 9 1 4 . . . . . . . . . . Ballistic Gun 3 | . 17 . 7 3 . 1 . . . . . 2 . . Ballistic Cannon 1 | . 10 7 . . . . . . . . . . . . Launcher 5 | . . . 1 2 10 13 15 15 15 13 13 3 . . Peak Build Rating 55 | 6 10 16 17 32 42 42 41 41 41 46 52 55 29 33 Average Rating 24 | 4 7 13 14 18 35 40 41 41 41 43 41 33 28 21 On Entrance 28 | . 6 9 16 12 32 42 41 41 41 41 46 52 25 29 Naked Turns . | . . . . . . . . . . . . . . . Heaviest Build 97 | 13 91 93 97 96 64 64 61 61 61 65 69 69 2 14 Greatest Support 63 | 40 40 63 63 60 56 56 56 56 56 56 56 56 18 22 Greatest Overweight (x) 30 | . 2 1 1 30 1 1 1 1 1 1 1 1 . 4 Average Overweight (x) . | . . 1 1 1 . 1 1 1 1 1 . . . . Largest Inventory Capacity 25 | 8 25 25 25 25 20 20 20 20 20 20 20 20 5 5 Average Capacity 18 | 7 18 25 25 20 20 20 20 20 20 20 20 18 5 5 Most Carried 25 | 2 20 25 25 20 19 20 20 20 20 20 20 19 5 5 Average Carried 15 | 1 11 20 20 13 17 18 19 20 19 20 20 16 4 3 Final Capacity 25 | 8 25 25 25 20 20 20 20 20 20 20 20 5 5 5 Final Carried 24 | 2 20 24 15 17 16 20 20 20 20 20 20 5 5 2 Class Distribution -------------------- 91% | Mutant 8% | Scavenger-Mutant Dominant Class ---------------- Mutant | -10/Materials Mutant | -9/Materials Mutant | -9/Mines Mutant | -8/Materials Mutant | -7/Factory Mutant | -7/Lower Caves Mutant | -7/Lower Caves Mutant | -7/Data Miner Mutant | -6/Proximity Caves Mutant | -6/Factory Mutant | -6/DSF Mutant | -5/Factory Mutant | -5/Waste Mutant | -5/Factory Resources | -11 -10 -9 -9 -8 -7 -7 -7 -7 -6 -6 -6 -5 -5 -5 ----------- Run | Yrd Mat Mat Min Mat Fac Low Low Dat Pro Fac DSF Fac Was Fac Matter Collected 1829 | 245 301 76 347 535 14 149 29 . 40 10 . 10 . 73 Remotely 25 | . . . . . . . . . . . . . . 25 Salvage Created 2399 | . 394 237 289 1189 14 28 . . 11 . . 114 . 123 Parts 121 | . 25 11 12 55 1 5 . . 3 . . 7 . 2 Haulers Intercepted 3 | . 1 . . 1 . . . . . . . . . 1 Recyclers Shooed 5 | . . . . 4 . . . . . . . 1 . . Parts Field Recycled . | . . . . . . . . . . . . . . . Retrieved Matter . | . . . . . . . . . . . . . . . Parts Self-Destructed 16 | . . . . . . 6 . . 10 . . . . . Prevented 1 | . . . . . . 1 . . . . . . . . Kills | -11 -10 -9 -9 -8 -7 -7 -7 -7 -6 -6 -6 -5 -5 -5 ------- Run | Yrd Mat Mat Min Mat Fac Low Low Dat Pro Fac DSF Fac Was Fac Combat Hostiles Destroyed 69 | . 11 2 21 23 . 3 . . 3 . . 6 . . Melee 5 | . . . . 5 . . . . . . . . . . Guns 14 | . 4 . 5 5 . . . . . . . . . . Cannons 13 | . 7 2 . 4 . . . . . . . . . . AOE 32 | . . . 15 5 . 3 . . 3 . . 6 . . Classes Destroyed 12 | . 4 2 2 4 . . . . . . . . . . Worker 4 | . . . . 1 1 . . . . . . 1 . 1 Builder 3 | . . . . 2 . . . . . . . 1 . . Tunneler 1 | . . . 1 . . . . . . . . . . . Hauler 3 | . 1 . . 1 . . . . . . . . . 1 Recycler 8 | . 1 2 1 4 . . . . . . . . . . Watcher 2 | . . 1 . 1 . . . . . . . . . . Swarmer 12 | . 3 . . 3 . 3 . . 3 . . . . . Grunt 28 | . 8 1 3 13 . . . . . . . 3 . . Duelist 1 | . . 1 . . . . . . . . . . . . Sentry 6 | . . . . 5 . . . . . . . 1 . . Hunter 4 | . . . . 2 . . . . . . . 2 . . Assembled 18 | . . . 18 . . . . . . . . . . . Best Kill Streak 15 | . 5 2 15 6 1 3 . . 3 . . 8 . 1 Combat Bots Only 15 | . 5 2 15 4 . 3 . . 3 . . 6 . . Max Kills in Single Turn 4 | . 1 1 4 4 1 2 . . 2 . . 3 . 1 Gunslinging . | . . . . . . . . . . . . . . . Exploded 4 | . . . 4 3 . 2 . . 2 . . 2 . . Melee 1 | . . . . 1 . . . . . . . . . . Uniques/NPCs Destroyed . | . . . . . . . . . . . . . . . Combat | -11 -10 -9 -9 -8 -7 -7 -7 -7 -6 -6 -6 -5 -5 -5 -------- Run | Yrd Mat Mat Min Mat Fac Low Low Dat Pro Fac DSF Fac Was Fac Hostile Shots Fired 548 | . 43 4 64 202 . 11 . . 6 . 30 104 1 83 Missed 178 | . 12 . 17 59 . 4 . . 3 . 9 43 1 30 Hits 370 | . 31 4 47 143 . 7 . . 3 . 21 61 . 53 Melee 8 | . . 4 4 . . . . . . . . . . . Projectile 362 | . 31 . 43 143 . 7 . . 3 . 21 61 . 53 AOE 10 | . . . 10 . . . . . . . . . . . Critical Strikes 16 | . . 1 2 5 . . . . . . 2 2 . 4 Part Disruptions 1 | . . . 1 . . . . . . . . . . . Damage Taken 7583 | . 469 127 1248 2169 . 70 . . 45 . 682 1337 . 1436 Core 1789 | . 44 . 166 522 . 18 . . . . 26 166 . 847 Absorbed by Shields 46 | . . . . . . 29 . . 17 . . . . . Redirected to Shielding 230 | . . 11 47 36 . . . . . . 35 63 . 38 Core Remaining (%) 73 | 100 82 . 58 5 . . . . 97 . 96 . . . Volleys Fired 171 | . 33 15 38 55 2 3 . . 2 . . 18 . 5 Largest 2 | . 2 2 2 2 1 2 . . 2 . . 2 . 1 Hottest 130 | . 50 125 130 130 28 60 . . 60 . . 60 . 90 Shots Fired 319 | . 66 30 73 100 2 6 . . 4 . . 33 . 5 Gun 168 | . 33 3 56 59 2 . . . . . . 15 . . Cannon 98 | . 33 27 . 33 . . . . . . . . . 5 Launcher 53 | . . . 17 8 . 6 . . 4 . . 18 . . Special . | . . . . . . . . . . . . . . . Kinetic 141 | . 66 12 10 36 2 . . . . . . 15 . . Thermal 94 | . . 18 46 25 . . . . . . . . . 5 Explosive 53 | . . . 17 8 . 6 . . 4 . . 18 . . Electromagnetic 31 | . . . . 31 . . . . . . . . . . Robot Hit Streak 11 | . 7 5 8 6 3 . . . . . . 11 . 3 Robot Miss Streak 5 | . 3 2 4 5 . . . . . . . 2 . 1 Penetration Max . | . . . . . . . . . . . . . . . Secondary Targets . | . . . . . . . . . . . . . . . Shots Hit Robots 227 | . 47 13 48 85 2 . . . . . . 25 . 7 Core Hits 161 | . 20 6 44 45 1 4 . . 4 . . 34 . 3 Critical Kills 1 | . . . . 1 . . . . . . . . . . Critical Parts Destroyed 4 | . . . . 4 . . . . . . . . . . Critical Strikes 8 | . 2 . . 6 . . . . . . . . . . Blast 2 | . 2 . . . . . . . . . . . . . Corrupt 1 | . . . . 1 . . . . . . . . . . Smash 5 | . . . . 5 . . . . . . . . . . Melee Attacks 40 | . . 1 . 34 . . . . . . . . . 5 Impact 35 | . . 1 . 34 . . . . . . . . . . Slashing . | . . . . . . . . . . . . . . . Piercing . | . . . . . . . . . . . . . . . Sneak Attacks 6 | . . . . 2 . . . . . . . . . 4 Combat Hostiles . | . . . . . . . . . . . . . . . Follow-up Attacks 5 | . . . . 5 . . . . . . . . . . Damage Inflicted 7595 | . 726 222 1441 2883 32 276 . . 342 . . 1448 . 225 Guns 1650 | . 283 . 586 560 32 . . . . . . 189 . . Cannons 1365 | . 443 222 . 599 . . . . . . . . . 101 Explosions 3766 | . . . 855 921 . 276 . . 342 . . 1259 . 113 Melee 803 | . . . . 803 . . . . . . . . . . Ramming 11 | . . . . . . . . . . . . . . 11 Kinetic 1464 | . 726 81 118 318 32 . . . . . . 189 . . Thermal 1265 | . . 141 468 442 . . . . . . . . . 214 Explosive 3470 | . . . 855 738 . 276 . . 342 . . 1259 . . Electromagnetic 582 | . . . . 582 . . . . . . . . . . Impact 803 | . . . . 803 . . . . . . . . . . Slashing . | . . . . . . . . . . . . . . . Piercing . | . . . . . . . . . . . . . . . Highest Corruption 21 | . 5 . . 21 . . . . . . . . . . Average Corruption 15 | . 5 . . 15 . . . . . . . . . . Corruption Purged . | . . . . . . . . . . . . . . . Corruption Blocked 6 | . . . . . . . . . . . . . 6 . Effects 29 | . . . . 29 . . . . . . . . . . Message Errors 7 | . . . . 7 . . . . . . . . . . Matter Fused 4 | . . . . 4 . . . . . . . . . . Heat Flow Errors 5 | . . . . 5 . . . . . . . . . . Energy Discharges 1 | . . . . 1 . . . . . . . . . . Parts Rejected 3 | . . . . 3 . . . . . . . . . . Data Loss (minor) 3 | . . . . 3 . . . . . . . . . . Data Loss (major) 1 | . . . . 1 . . . . . . . . . . Misfires 1 | . . . . 1 . . . . . . . . . . Alerts 2 | . . . . 2 . . . . . . . . . . Weapon Failures 2 | . . . . 2 . . . . . . . . . . Overload Shots . | . . . . . . . . . . . . . . . Overflow Damage 439 | . . . 33 368 . . . . . . . 5 . 33 Projectiles 2 | . . . . 2 . . . . . . . . . . Explosions 154 | . . . 33 83 . . . . . . . 5 . 33 Melee 283 | . . . . 283 . . . . . . . . . . Knockbacks 13 | . 6 2 . 5 . . . . . . . . . . Impact 5 | . . . . 5 . . . . . . . . . . Kinetic 8 | . 6 2 . . . . . . . . . . . . Secondary . | . . . . . . . . . . . . . . . Self-Inflicted Damage 755 | . . . 274 203 . 25 . . 32 . . 26 . 195 Shots 19 | . . . 8 6 . 1 . . 1 . . 1 . 2 Rammed 1 | . . . . . . . . . . . . . . 1 Targets Rammed 1 | . . . . . . . . . . . . . . 1 Kicked . | . . . . . . . . . . . . . . . Crushed . | . . . . . . . . . . . . . . . Highest Temperature 447 | . 10 90 300 447 . . . . . . . 56 . 34 Average Temperature 91 | . 3 48 110 113 . . . . . . . 32 . 14 Received Heat Transfer 1304 | . 180 . 215 540 . . . . . . . 225 . 144 Effects 4 | . . . . 4 . . . . . . . . . . Shutdowns 2 | . . . . 2 . . . . . . . . . . Interference 1 | . . . . 1 . . . . . . . . . . Matter Decay 1 | . . . . 1 . . . . . . . . . . Siege Activations . | . . . . . . . . . . . . . . . Martial Activations . | . . . . . . . . . . . . . . . Shielding Activations . | . . . . . . . . . . . . . . . Robots Disrupted . | . . . . . . . . . . . . . . . Combat Hostiles . | . . . . . . . . . . . . . . . Robots Corrupted 4 | . . . . 4 . . . . . . . . . . Combat Hostiles 4 | . . . . 4 . . . . . . . . . . Parts Fried 7 | . . . . 7 . . . . . . . . . . Impact Corruptions 11 | . . . . 11 . . . . . . . . . . Robots Melted 1 | . . . 1 . . . . . . . . . . . Combat Hostiles 1 | . . . 1 . . . . . . . . . . . Parts Melted 6 | . . . 4 2 . . . . . . . . . . Heat Transferred 2496 | . . 296 1147 892 . . . . . . . . . 161 Parts Sabotaged . | . . . . . . . . . . . . . . . Parts Stolen . | . . . . . . . . . . . . . . . Parts Stripped . | . . . . . . . . . . . . . . . Power Chain Reactions 3 | . . . . 3 . . . . . . . . . . Alert | -11 -10 -9 -9 -8 -7 -7 -7 -7 -6 -6 -6 -5 -5 -5 ------- Run | Yrd Mat Mat Min Mat Fac Low Low Dat Pro Fac DSF Fac Was Fac Maximum Alert Level 1 | . . . . 1 . . . . . . . . . . Low Security (%) 96 | 100 100 100 100 86 100 . . . . 100 100 100 100 100 Level 1 3 | . . . . 13 . . . . . . . . . . Level 2 . | . . . . . . . . . . . . . . . Level 3 . | . . . . . . . . . . . . . . . Level 4 . | . . . . . . . . . . . . . . . Level 5 . | . . . . . . . . . . . . . . . High Security . | . . . . . . . . . . . . . . . Max Security . | . . . . . . . . . . . . . . . Peak Influence 308 | . 136 40 50 308 140 . . . . . 15 139 27 158 Initial 140 | . . 29 . 2 140 . . . . . . 7 27 . Average 45 | . 50 8 9 98 115 . . . . . 1 88 10 24 Influence Increases 1936 | . 299 76 181 728 13 70 . . 70 . 15 239 . 245 Destroy 0b10 Robot/C 1040 | . 220 40 80 460 . 60 . . 60 . . 120 . . Destroy 0b10 Robot/NC 105 | . 10 15 10 45 5 . . . . . . 10 . 10 Destroy Leader 260 | . 52 12 20 124 . 10 . . 10 . . 30 . 2 Allied During Kill 6 | . . . 6 . . . . . . . . . . . Trap Triggered on 0b10 10 | . . . . . . . . . . . . 10 . . Successful Hack 23 | . . 7 . 8 8 . . . . . . . . . Disable Machine 90 | . . . . . . . . . . . . 15 . 75 Destroy Structure 207 | . 2 2 65 46 . . . . . . . 24 . 68 Lose Combat Pursuer 195 | . 15 . . 45 . . . . . . 15 30 . 90 Influence Decreases 1811 | . 228 147 174 427 228 163 . . 70 . . 175 79 120 Entered New Map 310 | . . 42 . 5 168 35 . . . . . 8 52 . Time Decay 1222 | . 198 105 127 327 60 128 . . 70 . . 87 27 93 Lost Part 259 | . 30 . 27 95 . . . . . . . 80 . 27 Lost Ally 20 | . . . 20 . . . . . . . . . . . Squads Dispatched 15 | . 1 . . 6 . . . . . . 1 5 . 2 Investigation 3 | . 1 . . 1 . . . . . . . . . 1 Extermination 1 | . . . . . . . . . . . . . . 1 Reinforcement 7 | . . . . 4 . . . . . . 1 2 . . Assault . | . . . . . . . . . . . . . . . Garrison 4 | . . . . 1 . . . . . . . 3 . . Intercept . | . . . . . . . . . . . . . . . Searches Triggered . | . . . . . . . . . . . . . . . Data Miner Redirects 1 | . . . . . . . . . . . . . . 1 Construction Impeded 2 | . . . . 1 . . . . . . . 1 . . Haulers Reinforced . | . . . . . . . . . . . . . . . Active Scanning Responses . | . . . . . . . . . . . . . . . Cargo Convoy Interrupts . | . . . . . . . . . . . . . . . Stealth | -11 -10 -9 -9 -8 -7 -7 -7 -7 -6 -6 -6 -5 -5 -5 --------- Run | Yrd Mat Mat Min Mat Fac Low Low Dat Pro Fac DSF Fac Was Fac Distress Signals 9 | . 2 1 . 6 . . . . . . . . . . Communications Jammed . | . . . . . . . . . . . . . . . Distress Signals . | . . . . . . . . . . . . . . . Times Spotted 129 | . 23 5 24 44 . 4 . . 3 . 3 10 6 7 Peak Tracking Total 11 | . 7 3 11 8 . 3 . . 2 . 3 3 6 3 Tactical Retreats 11 | . 1 . . 3 . . . . . . 1 1 . 5 Traps | -11 -10 -9 -9 -8 -7 -7 -7 -7 -6 -6 -6 -5 -5 -5 ------- Run | Yrd Mat Mat Min Mat Fac Low Low Dat Pro Fac DSF Fac Was Fac Traps Triggered 4 | . . . . 2 1 . . . . . . 1 . . Indirectly . | . . . . . . . . . . . . . . . Trap Hack Attempts . | . . . . . . . . . . . . . . . Triggered . | . . . . . . . . . . . . . . . Disarmed . | . . . . . . . . . . . . . . . Reprogrammed . | . . . . . . . . . . . . . . . Reused 1 | . . . . . . . . . . . . 1 . . Traps Extracted . | . . . . . . . . . . . . . . . Installed 1 | . . . . . . . . . . . . 1 . . Triggered 1 | . . . . . . . . . . . . 1 . . Most Traps Carried 1 | . . . . . . 1 1 1 1 1 1 1 . . Machines | -11 -10 -9 -9 -8 -7 -7 -7 -7 -6 -6 -6 -5 -5 -5 ---------- Run | Yrd Mat Mat Min Mat Fac Low Low Dat Pro Fac DSF Fac Was Fac Machines Disabled 6 | . . . . . . . . . . . . 1 . 5 Max in Single Turn 5 | . . . . . . . . . . . . 1 . 5 Machines Repaired . | . . . . . . . . . . . . . . . Machines Dismantled . | . . . . . . . . . . . . . . . Machines Sabotaged . | . . . . . . . . . . . . . . . Overloaded Fab Kills . | . . . . . . . . . . . . . . . Hacking | -11 -10 -9 -9 -8 -7 -7 -7 -7 -6 -6 -6 -5 -5 -5 --------- Run | Yrd Mat Mat Min Mat Fac Low Low Dat Pro Fac DSF Fac Was Fac Machines Accessed 12 | . 1 1 . 3 1 . . 4 . 1 . . . 1 Terminals 7 | . 1 1 . 2 1 . . . . 1 . . . 1 Fabricators . | . . . . . . . . . . . . . . . Repair Stations . | . . . . . . . . . . . . . . . Recycling Units . | . . . . . . . . . . . . . . . Scanalyzers 1 | . . . . 1 . . . . . . . . . . Garrison Access . | . . . . . . . . . . . . . . . Total Hacks 55 | . 1 1 . 12 2 . . 34 . 1 . . . 4 Successful 43 | . 1 1 . 5 1 . . 34 . 1 . . . . Failed 12 | . . . . 7 1 . . . . . . . . 4 Catastrophic 3 | . . . . 3 . . . . . . . . . . Database Lockouts . | . . . . . . . . . . . . . . . Manual 8 | . . . . 6 2 . . . . . . . . . Terminals 16 | . 1 1 . 7 2 . . . . 1 . . . 4 Fabricators . | . . . . . . . . . . . . . . . Repair Stations . | . . . . . . . . . . . . . . . Recycling Units . | . . . . . . . . . . . . . . . Scanalyzers 5 | . . . . 5 . . . . . . . . . . Garrison Access . | . . . . . . . . . . . . . . . Terminal Hacks 39 | . 1 1 . 1 1 . . 34 . 1 . . . . Record 11 | . . . . . . . . 11 . . . . . . Part Schematic 13 | . . . . . . . . 13 . . . . . . Robot Schematic 7 | . . . . . . . . 7 . . . . . . Prototype ID Bank 3 | . . . . . . . . 3 . . . . . . Open DSF 1 | . . . . . . . . . . 1 . . . . Branch Access Points 3 | . . 1 . 1 1 . . . . . . . . . Alert Level 1 | . 1 . . . . . . . . . . . . . Fabricator Hacks . | . . . . . . . . . . . . . . . Repair Station Hacks . | . . . . . . . . . . . . . . . Recycling Unit Hacks . | . . . . . . . . . . . . . . . Scanalyzer 4 | . . . . 4 . . . . . . . . . . Insert Component 2 | . . . . 2 . . . . . . . . . . Analyze 2 | . . . . 2 . . . . . . . . . . Garrison Access Hacks . | . . . . . . . . . . . . . . . Unauthorized Hacks . | . . . . . . . . . . . . . . . Terminals . | . . . . . . . . . . . . . . . Fabricators . | . . . . . . . . . . . . . . . Repair Stations . | . . . . . . . . . . . . . . . Recycling Units . | . . . . . . . . . . . . . . . Scanalyzers . | . . . . . . . . . . . . . . . Garrison Access . | . . . . . . . . . . . . . . . Data Cores Recovered . | . . . . . . . . . . . . . . . Used . | . . . . . . . . . . . . . . . Hacking Detections 5 | . . 1 . 3 . . . . . . . . . 1 Full Trace Events 3 | . . . . 2 . . . . . . . . . 1 Feedback Events . | . . . . . . . . . . . . . . . Feedback Blocked . | . . . . . . . . . . . . . . . Robot Schematics Acquired 7 | . . . . . . . . 7 . . . . . . Robots Built . | . . . . . . . . . . . . . . . Authchips . | . . . . . . . . . . . . . . . Time . | . . . . . . . . . . . . . . . Total Robot Build Rating . | . . . . . . . . . . . . . . . Part Schematics Acquired 15 | . . . . 2 . . . 13 . . . . . . Parts Built . | . . . . . . . . . . . . . . . Authchips . | . . . . . . . . . . . . . . . Time . | . . . . . . . . . . . . . . . Total Part Build Rating . | . . . . . . . . . . . . . . . Parts Repaired . | . . . . . . . . . . . . . . . Time . | . . . . . . . . . . . . . . . Parts Recycled . | . . . . . . . . . . . . . . . Recycled Matter . | . . . . . . . . . . . . . . . Retrieved Matter . | . . . . . . . . . . . . . . . Retrieved Components . | . . . . . . . . . . . . . . . Parts Scanalyzed 2 | . . . . 2 . . . . . . . . . . Part Schematics Acquired 2 | . . . . 2 . . . . . . . . . . Parts Damaged . | . . . . . . . . . . . . . . . Bothacking | -11 -10 -9 -9 -8 -7 -7 -7 -7 -6 -6 -6 -5 -5 -5 ------------ Run | Yrd Mat Mat Min Mat Fac Low Low Dat Pro Fac DSF Fac Was Fac Used RIF Installer . | . . . . . . . . . . . . . . . Robots Hacked 1 | . . . . . . . . . . . . . . 1 Non-combat 1 | . . . . . . . . . . . . . . 1 Combat . | . . . . . . . . . . . . . . . Robot Hacks Applied 4 | . . . . . . . . . . . . . . 4 parse_system 1 | . . . . . . . . . . . . . . 1 no_distress 1 | . . . . . . . . . . . . . . 1 find_fabricator 1 | . . . . . . . . . . . . . . 1 find_dsf 1 | . . . . . . . . . . . . . . 1 Relay Couplers Released . | . . . . . . . . . . . . . . . Fabnet Peak Effective % . | . . . . . . . . . . . . . . . Robots Rewired . | . . . . . . . . . . . . . . . Allies Hacked . | . . . . . . . . . . . . . . . Hacks Repelled . | . . . . . . . . . . . . . . . Allies | -11 -10 -9 -9 -8 -7 -7 -7 -7 -6 -6 -6 -5 -5 -5 -------- Run | Yrd Mat Mat Min Mat Fac Low Low Dat Pro Fac DSF Fac Was Fac Total Allies 2 | . . . 2 . . . . . . . . . . . Largest Group 2 | . . . 2 . . . . . . . . . . . Highest-Rated Group 39 | . . . 39 . . . . . . . . . . . Highest-Rated Ally 31 | . . . 31 . . . . . . . . . . . Total Orders . | . . . . . . . . . . . . . . . Ally Attacks 18 | . . . 18 . . . . . . . . . . . Total Damage 170 | . . . 170 . . . . . . . . . . . Kills 3 | . . . 3 . . . . . . . . . . . Allies Corrupted . | . . . . . . . . . . . . . . . Allies Melted . | . . . . . . . . . . . . . . . Intel | -11 -10 -9 -9 -8 -7 -7 -7 -7 -6 -6 -6 -5 -5 -5 ------- Run | Yrd Mat Mat Min Mat Fac Low Low Dat Pro Fac DSF Fac Was Fac Active Infowar (turns) 1630 | . 580 . . . . . . . . . 40 184 97 729 Optics 1050 | . . . . . . . . . . . 40 184 97 729 Sensors 21 | . . . . . . . . . . . . . . 21 Seismic 580 | . 580 . . . . . . . . . . . . . Robot Analysis Total . | . . . . . . . . . . . . . . . Derelict Logs Recovered 4 | . . . . . . 2 1 . 1 . . . . . Drone Launches . | . . . . . . . . . . . . . . . Drone Recoveries . | . . . . . . . . . . . . . . . Exploration | -11 -10 -9 -9 -8 -7 -7 -7 -7 -6 -6 -6 -5 -5 -5 ------------- Run | Yrd Mat Mat Min Mat Fac Low Low Dat Pro Fac DSF Fac Was Fac Turns Passed 6050 | 64 714 502 738 1015 133 913 375 119 287 110 70 184 97 729 Spaces Moved 4080 | 36 258 178 253 408 103 780 325 104 183 95 58 119 245 935 Core 497 | 4 . . . 16 . . . . . . . 4 . 473 Treads 792 | 32 258 178 253 71 . . . . . . . . . . Legs 29 | . . . . 29 . . . . . . . . . . Wheels 2034 | . . . . 292 103 780 325 104 183 95 58 94 . . Hover 21 | . . . . . . . . . . . . . . 21 Flight 707 | . . . . . . . . . . . . 21 245 441 Fastest Speed 34 | 50 160 240 240 100 100 115 115 115 115 115 100 40 34 34 Average Speed 119 | 147 222 240 240 161 108 115 115 115 115 115 108 99 34 49 Slowest Speed 1550 | 160 320 240 240 1550 115 115 115 115 115 115 115 115 34 250 Overloaded Moves . | . . . . . . . . . . . . . . . Propulsion Burnouts . | . . . . . . . . . . . . . . . Robots Hopped 1 | . . . . . . . . . . . . . . 1 Potential Cave-ins . | . . . . . . . . . . . . . . . Cave-ins Triggered . | . . . . . . . . . . . . . . . Exploration Rate (%) 39 | 3 43 13 42 46 3 87 53 71 36 4 85 4 87 8 Regions Visited 14 Branch Regions 5 Pre-discovered Areas 1 | . . . . . . . . 1 . . . . . . Known Exits Taken 5 | . . 1 . . 1 1 1 . . 1 . . . . Unknown Exits Taken 6 | 1 1 . 1 1 . . . 1 1 . . . . . Scrap Searched 8 | . . . 1 . . 2 3 . 2 . . . . . Spaces Dug 2 | . . 1 . . . . . . . . . 1 . . Terrain Destroyed 314 | . . 1 121 50 . 43 . . 26 . . 15 . 58 Melee 1 | . . 1 . . . . . . . . . . . . Projectile 4 | . . . . . . . . . . . . 3 . 1 AOE 309 | . . . 121 50 . 43 . . 26 . . 12 . 57 Terrain Rammed . | . . . . . . . . . . . . . . . Walls Destroyed . | . . . . . . . . . . . . . . . Machines Disabled . | . . . . . . . . . . . . . . . Actions | -11 -10 -9 -9 -8 -7 -7 -7 -7 -6 -6 -6 -5 -5 -5 --------- Run | Yrd Mat Mat Min Mat Fac Low Low Dat Pro Fac DSF Fac Was Fac Total 4880 | 43 330 226 309 610 123 789 326 103 257 95 63 152 258 1196 Wait 371 | . 17 7 3 40 . . . . 68 . . 1 10 225 Move 4065 | 35 257 177 252 407 102 779 324 103 182 94 57 119 244 933 Hop 1 | . . . . . . . . . . . . . . 1 Pick Up 80 | 1 17 13 1 24 3 4 1 . 2 . . 4 2 8 Fast Attach 31 | 6 1 . 1 13 1 . . . . 1 4 . . 4 Attach 40 | . 1 5 10 11 2 . . . . . . 3 1 7 Detach 7 | . . . . 4 1 . . . . . . . . 2 Swap 30 | 1 4 3 4 12 1 1 . . . . 1 3 . . Drop 35 | . . 5 . 15 3 . 1 . 2 . . 3 1 5 Fire 171 | . 33 15 38 55 2 3 . . 2 . . 18 . 5 Melee 35 | . . 1 . 29 . . . . . . . . . 5 Ram 1 | . . . . . . . . . . . . . . 1 Kick . | . . . . . . . . . . . . . . . Crush . | . . . . . . . . . . . . . . . Escape Stasis 8 | . . . . . 8 . . . . . . . . . Rewire 3 | . . . . . . 2 . . . . 1 . . . Trap 1 | . . . . . . . . . . . . 1 . . Miscellaneous 1 | . . . . . . . . . 1 . . . . . Route ------- -11/Scrapyard -10/Materials (discovered 3 exits: *Mat / [*Min x2]) -9/Materials (discovered 2 exits: *Min x2) -9/Mines -8/Materials -7/Factory (discovered 4 exits: Sto x2 / *Low x2) -7/Lower Caves -7/Lower Caves -7/Data Miner -6/Proximity Caves -6/Factory -6/DSF -5/Factory -5/Waste -5/Factory History --------- Turn | Location | Event 30 | -11/Scrapyard | Discovered new exit (range 15) 65 | -11/Scrapyard | Entered Materials 99 | -10/Materials | Discovered new exit (range 7) 305 | -10/Materials | Build established: Mutant 359 | -10/Materials | Discovered new exit (range 10) 605 | -10/Materials | Discovered new exit (range 9) 665 | -10/Materials | Derelicts attacked the area 779 | -10/Materials | Entered another Materials area 779 | -9/Materials | Evolved 2 slots: Propulsion x1, Utility x1 816 | -9/Materials | Identified exit to Mines 1281 | -9/Materials | Entered Mines 1281 | -9/Mines | Discovered new exit (range 2) 1591 | -9/Mines | Assembled infested the area 1596 | -9/Mines | Assisted by a Guerilla fighting off Assembled 1663 | -9/Mines | Lost 3 allies 1675 | -9/Mines | Destroyed 15 combat bots 1708 | -9/Mines | Lost 8 parts (2p3n1u2w) 2019 | -9/Mines | Entered Materials 2019 | -8/Materials | Evolved 2 slots: Propulsion x1, Utility x1 2078 | -8/Materials | Build established: Scavenger-Mutant 2194 | -8/Materials | Lost 3 parts (1n1u1w) 2347 | -8/Materials | Core integrity fell below 50% 2381 | -8/Materials | Lost 4 parts (1p3n) 2396 | -8/Materials | Core integrity fell below 20% 2462 | -8/Materials | Build established: Mutant 2534 | -8/Materials | System corruption reached 10% 2826 | -8/Materials | Garrison activated, responded to threat 3022 | -8/Materials | Discovered new exit (range 13) 3034 | -8/Materials | Entered Factory 3034 | -7/Factory | Evolved 2 slots: Power x1, Utility x1 3101 | -7/Factory | Identified exit to Storage 3101 | -7/Factory | Identified exit to Lower Caves 3167 | -7/Factory | Entered Lower Caves 3278 | -7/Lower Caves | Identified exit to Lower Caves 3389 | -7/Lower Caves | Encountered a Warlord checkpoint 3542 | -7/Lower Caves | Found DRS Beacon 3727 | -7/Lower Caves | Learned Factory interactive machine intel 4077 | -7/Lower Caves | Attracted the attention of an 0b10 checkpoint 4080 | -7/Lower Caves | Entered another Lower Caves area 4263 | -7/Lower Caves | Identified exit to Data Miner 4455 | -7/Lower Caves | Entered Data Miner 4455 | -7/Data Miner | Discovered new exit (range 6) 4484 | -7/Data Miner | Met Data Miner 4513 | -7/Data Miner | Learned location of Section 7 (-2) 4513 | -7/Data Miner | Acquired the access code to Warlord's prototype stash 4536 | -7/Data Miner | Received God Mode back door access code from Data Miner 4574 | -7/Data Miner | Entered Proximity Caves 4640 | -6/Proximity Caves | Activated DRS Beacon 4808 | -6/Proximity Caves | Learned 4 Factory zone layouts 4837 | -6/Proximity Caves | Discovered new exit (range 14) 4861 | -6/Proximity Caves | Entered Factory 4861 | -6/Factory | Evolved 2 slots: Propulsion x1, Utility x1 4863 | -6/Factory | Loaded intel: 55 interactive machine locations 4970 | -6/Factory | Identified exit to DSF 4971 | -6/Factory | Entered DSF 4997 | -6/DSF | Additional patrols routed to DSF 5019 | -6/DSF | Discovered new exit (range 14) 5030 | -6/DSF | Found Hvy. Insulated Plating 5041 | -6/DSF | Entered Factory 5041 | -5/Factory | Evolved 2 slots: Power x1, Utility x1 5048 | -5/Factory | Lost 6 parts (1p5u) 5146 | -5/Factory | Lost 6 parts (1p2n2u1w) 5225 | -5/Factory | Sucked down chute 5225 | -5/Factory | Entered Waste 5240 | -5/Waste | EMP discharged 5244 | -5/Waste | Spotted C-40 Crusher 5249 | -5/Waste | Spotted C-40 Crusher 5251 | -5/Waste | Spotted C-40 Crusher 5268 | -5/Waste | Spotted C-40 Crusher 5281 | -5/Waste | Spotted C-40 Crusher 5283 | -5/Waste | Spotted C-40 Crusher 5318 | -5/Waste | Discovered new exit (range 11) 5322 | -5/Waste | Entered Factory 5365 | -5/Factory | Spotted B-75 Beast 5421 | -5/Factory | Incoming investigation squad redirected 5842 | -5/Factory | Core integrity fell below 50% 5855 | -5/Factory | Core integrity fell below 20% 5882 | -5/Factory | Lost 3 parts (2n1u) 6051 | -5/Factory | Destroyed by P-70 Sage with Tesla Rifle Last Messages --------------- 05981_ U-05 Engineer builds a Wall. 06029_ Acquired Mass Driver. 06037_ Acquired Imp. Datajack. 06045_ Sneak attack on A-15 Conveyor. 06045_ Jacked A-15 Conveyor... >>find_fabricator Pinpointed nearest Fabricator: (148,60) (added to intel). 06046_ Sneak attack on A-15 Conveyor. 06046_ Jacked A-15 Conveyor... >>find_dsf Pinpointed nearest DSF Access: (140,35) (added to intel). 06047_ Sneak attack on A-15 Conveyor. 06047_ Jacked A-15 Conveyor... >>parse_system Reading system data... 06048_ Sneak attack on A-15 Conveyor. 06048_ Jacked A-15 Conveyor... >>no_distress Distress signal routine blocked. 06049_ P-70 Sage resets A-15 Conveyor, behavior restored. Map ----- +----------------------------------------------------+ | ?????# #??????????????????????????????? | | ?????# #??????????????????????????????? | | ?????# #??????????????????????????????? | | ?????# #??????????????????????????????? | | ?????# #??????????????????????????????? | | ?????# #??????????????????????????????? | | ?????# #??????????????????????????????? | | ?????# #??????????????????????????????? | | ?????# #??????????????????????????????? | | ?????# #??????????????????????????????? | | ?????# #??????????????????????????????? | | ?????##### ## ##????????????##########????????? | | ???????# #?????????????# #????????? | | ???????# ! ############### """#????????? | | ???????# ## # """#????????? | | ???????# ## # """#????????? | | ???????# ## # #????????? | | ???????# ## ! # "" #????????? | | ???????# ## ! # "T #????????? | | ???????# ## # "" #????????? | | ???????# ## """"""" # #????????? | | ???????### #### """"""" #####+####????????? | | ?????????# #??# """"""" + #???######### | | ?????????# #??# """"""" ##### #???# | | ?????????# #??# #???# ##### | | ?????????# #??# p@ #???# + | | ?????????# #??#####A########???# # | | ?????????# #???# ######### # !! | | ?????????# ##### # ! | | ?????????# # | | ?????????# + | | ?????????# # | | ?????????# ##### # | | ?????????# #???# ###+######### # | | ?????????# #???######### ??????# # | | ????????# ???????????# #?????# # | | ??????? ???????????# #?????# # | | ????? ???????????# #?????# # | | ???? H #??????????# #?????# ######### | | ?? #??????????# #?????# #???????? | | ? #??????????# #?????# #???????? | | ?######## #??????????# #?????# #???????? | | ????????### ###??????????# ###???# #???????? | | ??????????# ?????????????# !#######+#######?? | | ??????????# ?????????????# ## #?? | | ??????????# ?????????????# ## ! #?? | | ??????????# ????????############# ! #?? | | ??????????# ????????# #??# #?? | | ???????????? ????????# """" #??# #?? | | ??????????????????????# """" #??# #?? | +----------------------------------------------------+ Best States ------------- Heat Dissipation 51 Energy Generation 23 Energy Capacity 265 Matter Stores 300 Matter Capacity 300 Sight Range 20 Robot Scan Range 15 Terrain Scan Density 10 Corruption Block 7 Armor Coverage 750 Resistance: EM 30 Core Shielding 30 Power Shielding 33 Evasion (%) 63 Recoil Reduction 3 Particle Charging 20 Item Schematics ----------------- Cesium-ion Thruster | -8/Materials | Scanalyzed Lgt. Treads | -8/Materials | Scanalyzed Combat Drone Bay | -7/Data Miner | Free Lgt. Regenerative Plating | -7/Data Miner | Free Cld. Cesium-ion Thruster | -7/Data Miner | Free Exp. Propulsion Shielding | -7/Data Miner | Free Gui. EMP Blaster | -7/Data Miner | Free Arm. Medium Treads | -7/Data Miner | Free Lrn. Tractor Beam | -7/Data Miner | Free Disruptor Cannon | -7/Data Miner | Free Focal Shield | -7/Data Miner | Free KE Penetrator | -7/Data Miner | Free Imp. Recalibrator | -7/Data Miner | Free Centrium Wheel | -7/Data Miner | Free Imp. System Guard | -7/Data Miner | Free Robot Schematics ------------------ Y-54 Guardian | -7/Data Miner | Free M-22 Extractor | -7/Data Miner | Free O-24 Administrator | -7/Data Miner | Free X-57 Shotgunner | -7/Data Miner | Free S-27 Virus | -7/Data Miner | Free B-60 Warrior | -7/Data Miner | Free G-50 Soldier | -7/Data Miner | Free Fabricated ------------ Nothing Repaired ---------- Nothing Alien Tech Used ----------------- None Achievements -------------- Exterminator Challenges ------------ None Game ------ Seed TitaniumMetafiberInitializer Manual? 0 Play Time 01:18:03 Cumulative 92.0 hours Start 2025.10.03 @ 19:28:15 End 2025.10.14 @ 13:33:10 Sessions 3 Manual Loads 0 Difficulty Rogue Special Mode None Game No. 52 Rogue 46 Adventurer 6 Explorer 0 Win Type - Total 3 Types 3/0/0/0/0/0/0/0/0/0 Lore% 25 Gallery% 43 Achievement% 43 Wizard Run 0 Options --------- Layout 0 ASCII 1 Keyboard 1 Movement Vi Keybinds 0 Fullscreen 1 Font 18/SmallcapsGlow Map View 76x50 Zoom Use 0% Tactical HUD 1 Map Filters NONE Filters NONE Steam 1 RUN: 2f693efb-5735-4d78-8f38-8d277298904e